bitfinex/quotes_SOLUSD_20250316
["timestamp","ask_amount","ask_price","bid_price","bid_amount"]
[1742154715782,0.063,126.87,126.84,17.03746657]
[1742154715988,0.063,126.87,126.85,17.03746657]
[1742154716180,0.063,126.87,126.84,17.03746657]
[1742154717284,0.063,126.87,126.85,17.03746657]
[1742154717586,0.063,126.87,126.84,17.03746657]
[1742154718671,0.063,126.87,126.82,6.59242314]
[1742154718672,35.75011543,126.87,126.81,17.03746657]
[1742154719272,35.75011543,126.87,126.8,18.60096657]
[1742154719273,17.03746657,126.85,126.8,18.60096657]
[1742154720103,17.03746657,126.86,126.81,17.03746657]
[1742154720787,18.71264886,126.87,126.83,17.03746657]
[1742154720788,6.3688,126.87,126.83,17.03746657]
[1742154720984,6.3688,126.87,126.84,17.03746657]
[1742154721373,0.063,126.87,126.84,17.03746657]
[1742154721572,0.063,126.87,126.85,17.03746657]
[1742154722993,0.063,126.87,126.84,17.03746657]
[1742154723188,0.063,126.87,126.85,17.03746657]
[1742154724180,0.063,126.87,126.81,1.32442797]
[1742154724181,0.063,126.87,126.84,17.03746657]
[1742154725280,0.063,126.87,126.83,17.03746657]
[1742154725610,0.063,126.87,126.84,17.03746657]
[1742154727109,0.063,126.87,126.85,17.03746657]
[1742154727399,0.063,126.87,126.86,18.66386657]
[1742154728985,0.063,126.87,126.86,1.6264]
[1742154729294,0.063,126.87,126.86,18.66386657]
[1742154729595,0.063,126.87,126.86,24.96996657]
[1742154730078,0.063,126.87,126.86,25.25428971]
[1742154730481,0.063,126.87,126.86,30.44983601]
[1742154730802,0.063,126.9,126.86,30.44983601]
[1742154730972,0.063,126.9,126.89,17.03746657]
[1742154731293,0.063,126.9,126.89,42.09905628]
[1742154731692,0.063,126.9,126.89,48.47259441]
[1742154731878,0.063,126.9,126.89,379.12224327]
[1742154732078,0.063,126.91,126.9,0.28432314]
[1742154732274,0.063,126.91,126.9,40.66335628]
[1742154732912,0.063,126.91,126.9,41.84472191]
[1742154733081,0.063,126.95,126.9,57.60512191]
[1742154733283,0.063,126.95,126.94,17.03746657]
[1742154734797,0.063,126.95,126.93,17.03746657]
[1742154734990,0.063,126.95,126.92,17.03746657]
[1742154735191,0.063,126.95,126.93,17.03746657]
[1742154735892,0.063,126.95,126.94,17.03746657]
[1742154736617,0.063,126.95,126.94,23.33956657]
[1742154736896,0.063,126.95,126.94,17.03746657]
[1742154738192,0.063,126.95,126.92,17.03746657]
[1742154738908,0.063,126.95,126.93,17.03746657]
[1742154742490,0.063,126.95,126.94,17.03746657]
[1742154743098,0.063,126.95,126.94,17.32178971]
[1742154743294,0.063,126.95,126.94,18.83188971]
[1742154743810,0.063,126.95,126.94,25.13398971]
[1742154746205,0.063,126.95,126.94,337.13398971]
[1742154746603,0.063,126.99,126.96,0.28432314]
[1742154746802,0.063,126.99,126.98,17.32178971]
[1742154747591,0.063,126.99,126.98,23.62198971]
[1742154747993,0.063,126.99,126.96,0.14216157]
[1742154748207,0.063,126.99,126.97,17.03746657]
[1742154749413,0.063,126.99,126.95,80.8]
[1742154749620,0.063,126.99,126.94,5.63963331]
[1742154749908,23.40016657,126.99,126.94,22.67709988]
[1742154750116,23.40016657,126.99,126.95,17.03746657]
[1742154750117,6.3627,126.99,126.95,17.03746657]
[1742154750811,6.3627,126.99,126.96,17.03746657]
[1742154751001,0.063,126.99,126.96,17.03746657]
[1742154751609,0.063,126.99,126.97,17.03746657]
[1742154751810,0.063,126.99,126.96,17.03746657]
[1742154756696,0.063,126.99,126.95,0.28432314]
[1742154757210,0.063,126.99,126.96,17.03746657]
[1742154757893,0.063,126.99,126.98,17.03746657]
[1742154758320,0.063,126.99,126.98,23.62198971]
[1742154761219,0.063,126.99,126.98,17.32178971]
[1742154761615,0.063,126.99,126.98,23.62198971]
[1742154762313,0.063,126.99,126.98,24.80272476]
[1742154763113,0.063,127.0,126.99,1.80932314]
[1742154763300,0.063,127.0,126.99,37.49643857]
[1742154763505,0.063,127.03,127.02,17.32178971]
[1742154763705,0.063,127.03,127.02,40.65745628]
[1742154764099,0.063,127.03,127.02,23.61998971]
[1742154765518,0.063,127.03,127.02,17.03746657]
[1742154766925,0.063,127.03,127.02,23.61998971]
[1742154767811,0.063,127.03,127.02,40.65745628]
[1742154769436,0.063,127.03,127.02,352.65745628]
[1742154769899,0.063,127.03,127.02,356.62022643]
[1742154770700,0.063,127.03,127.02,21.28455986]
[1742154770909,0.063,127.03,127.01,17.03746657]
[1742154771304,0.063,127.03,127.0,17.03746657]
[1742154772105,0.063,127.03,127.01,17.03746657]
[1742154773122,0.063,127.03,127.0,17.10046657]
[1742154774331,0.063,127.03,127.0,0.063]
[1742154774530,17.03746657,127.01,127.0,0.063]
[1742154775002,17.03746657,127.02,127.0,0.063]
[1742154775427,17.03746657,127.01,127.0,0.063]
[1742154775834,23.33616657,127.01,127.0,0.063]
[1742154776316,6.2987,127.01,127.0,0.063]
[1742154776513,23.33616657,127.01,127.0,0.063]
[1742154777410,6.2987,127.01,127.0,0.063]
[1742154779149,0.063,127.03,127.0,17.10046657]
[1742154779313,0.063,127.03,127.02,17.03746657]
[1742154783641,0.063,127.03,127.02,23.33566657]
[1742154784518,0.063,127.08,127.06,0.14216157]
[1742154784735,0.03,127.16,127.08,0.28432314]
[1742154785037,18.64964886,127.14,127.09,17.03746657]
[1742154785619,18.64964886,127.14,127.1,17.03746657]
[1742154786028,17.06746657,127.16,127.11,17.03746657]
[1742154786354,35.68711543,127.15,127.1,17.03746657]
[1742154787140,45.74367675,127.15,127.1,27.09402789]
[1742154787334,52.03547675,127.15,127.1,27.09402789]
[1742154787534,45.74367675,127.15,127.1,27.09402789]
[1742154788043,18.64964886,127.15,127.1,27.09402789]
[1742154788722,27.09402789,127.14,127.07,11.70919097]
[1742154788919,27.09402789,127.14,127.09,27.09402789]
[1742154789327,18.64964886,127.14,127.1,27.09402789]
[1742154790746,6.2918,127.15,127.11,27.09402789]
[1742154794145,18.64964886,127.14,127.11,27.09402789]
[1742154794546,18.64964886,127.14,127.1,27.09402789]
[1742154794738,53.52367675,127.13,127.08,27.09402789]
[1742154794945,18.64964886,127.1,127.06,27.09402789]
[1742154795146,27.12402789,127.12,127.07,27.09402789]
[1742154795350,27.12402789,127.12,127.05,7.8699]
[1742154795351,18.67964886,127.12,127.09,27.09402789]
[1742154796036,0.03,127.12,127.1,27.09402789]
[1742154796741,0.03,127.12,127.09,6.2946]
[1742154796948,0.03,127.12,127.11,27.09402789]
[1742154800662,0.03,127.12,127.1,27.09402789]
[1742154801659,0.03,127.12,127.09,6.2946]
[1742154801844,0.03,127.12,127.1,27.09402789]
[1742154804257,0.03,127.12,127.11,27.09402789]
[1742154807261,0.03,127.12,127.11,16.9317788]
[1742154808558,0.03,127.12,127.11,23.2254788]
[1742154811866,0.03,127.12,127.11,16.9317788]
[1742154812063,0.03,127.12,127.09,16.9317788]
[1742154812253,18.67964886,127.12,127.08,16.9947788]
[1742154812454,26.45964886,127.12,127.08,16.9947788]
[1742154812649,18.64964886,127.1,127.08,0.063]
[1742154812860,16.9317788,127.09,127.08,0.063]
[1742154814266,6.2947,127.09,127.08,0.063]
[1742154816566,18.64964886,127.11,127.08,0.063]
[1742154816862,47.4234,127.12,127.09,16.9317788]
[1742154817166,6.3234,127.12,127.09,16.9317788]
[1742154819945,35.58142766,127.11,127.08,0.063]
[1742154820168,16.9317788,127.1,127.08,0.063]
[1742154821065,16.9617788,127.1,127.08,0.063]
[1742154821266,0.03,127.1,127.08,0.063]
[1742154822144,0.03,127.1,127.08,16.9947788]
[1742154823908,0.03,127.1,127.08,0.063]
[1742154826547,38.64964886,127.09,127.08,0.063]
[1742154826753,38.64964886,127.09,127.08,0.0001]
[1742154826754,63.6257508,127.09,127.08,0.0001]
[1742154827369,63.34142766,127.09,127.08,0.0001]
[1742154828380,69.63612766,127.09,127.08,0.0001]
[1742154830173,52.70434886,127.09,127.08,0.0001]
[1742154830981,44.94434886,127.09,127.08,0.0001]
[1742154831285,52.70434886,127.09,127.08,0.0001]
[1742154832370,69.63612766,127.09,127.08,0.0001]
[1742154832573,69.9204508,127.09,127.08,0.0001]
[1742154832783,69.9504508,127.09,127.08,0.0001]
[1742154833975,93.6304508,127.09,127.08,0.0001]
[1742154834183,134.7304508,127.09,127.08,0.0001]
[1742154837785,111.0504508,127.09,127.08,0.0001]
[1742154838864,24.97434886,127.09,127.08,16.9318788]
[1742154841573,24.97434886,127.09,127.08,0.0001]
[1742154847398,0.03,127.09,127.08,16.9318788]
[1742154847599,0.03,127.09,127.08,18.4377788]
[1742154852194,0.03,127.09,127.08,41.6647576]
[1742154852379,0.03,127.1,127.08,41.80691917]
[1742154852579,0.03,127.1,127.09,16.9317788]
[1742154852783,0.03,127.1,127.09,17.21610194]
[1742154853272,18.67964886,127.16,127.1,7.79026157]
[1742154853475,0.03,127.16,127.15,16.9317788]
[1742154855081,0.03,127.16,127.15,18.4376788]
[1742154858007,0.03,127.16,127.13,16.9317788]
[1742154861113,24.6717788,127.15,127.09,16.9317788]
[1742154861313,18.64964886,127.14,127.09,16.9317788]
[1742154861616,16.9317788,127.13,127.08,1.5807]
[1742154861920,18.64964886,127.11,127.08,1.5807]
[1742154862119,18.64964886,127.11,127.08,18.5124788]
[1742154862324,6.2928,127.13,127.09,16.9317788]
[1742154862512,18.64964886,127.12,127.1,16.9317788]
[1742154863100,6.2924,127.14,127.1,16.9317788]
[1742154863299,18.64964886,127.13,127.11,16.9317788]
[1742154864113,7.74,127.15,127.11,16.9317788]
[1742154864321,18.64964886,127.14,127.12,16.9317788]
[1742154865099,18.64964886,127.14,127.11,16.9317788]
[1742154865897,24.94184886,127.14,127.11,16.9317788]
[1742154866099,24.94184886,127.14,127.1,16.9317788]
[1742154866311,24.94184886,127.14,127.11,16.9317788]
[1742154867620,18.64964886,127.14,127.12,16.9317788]
[1742154867818,18.64964886,127.14,127.1,6.2941]
[1742154867819,7.74,127.15,127.13,16.9317788]
[1742154869724,24.97104886,127.16,127.13,23.2242788]
[1742154869725,0.03,127.16,127.13,23.2242788]
[1742154870016,0.03,127.16,127.14,16.9317788]
[1742154873709,0.03,127.16,127.15,16.9317788]
[1742154875207,0.03,127.16,127.15,23.2234788]
[1742154875424,0.03,127.16,127.15,16.9317788]
[1742154875723,0.03,127.16,127.15,23.2234788]
[1742154876719,0.03,127.16,127.15,23.50780194]
[1742154877026,0.03,127.16,127.15,29.71800194]
[1742154882210,0.03,127.22,127.16,0.28432314]
[1742154882531,0.03,127.22,127.21,16.9317788]
[1742154883813,0.03,127.22,127.2,18.5714788]
[1742154884306,0.03,127.22,127.19,16.9317788]
[1742154886433,0.03,127.22,127.2,16.9317788]
[1742154886933,0.03,127.22,127.19,16.9317788]
[1742154887830,0.03,127.22,127.18,16.9317788]
[1742154888023,0.03,127.22,127.17,1.6397]
[1742154888024,18.64964886,127.21,127.17,18.5714788]
[1742154888209,18.64964886,127.19,127.16,16.9317788]
[1742154888413,18.64964886,127.19,127.15,16.9317788]
[1742154888616,18.64964886,127.19,127.16,16.9317788]
[1742154889524,6.2893,127.2,127.17,16.9317788]
[1742154892442,6.2893,127.2,127.14,22.46201965]
[1742154892443,18.64964886,127.19,127.14,5.53024085]
[1742154892746,6.2902,127.18,127.15,16.9317788]
[1742154892925,18.64964886,127.17,127.13,16.9317788]
[1742154893331,18.64964886,127.17,127.16,0.063]
[1742154893528,35.58142766,127.17,127.12,16.9317788]
[1742154893834,18.64964886,127.17,127.13,16.9317788]
[1742154894422,18.64964886,127.17,127.14,16.9317788]
[1742154894831,6.2909,127.17,127.14,16.9317788]
[1742154895844,35.58142766,127.19,127.14,16.9317788]
[1742154895845,6.2902,127.18,127.14,16.9317788]
[1742154896024,18.64964886,127.17,127.14,16.9317788]
[1742154898041,6.2912,127.16,127.14,16.9317788]
[1742154898223,35.58142766,127.19,127.14,16.9317788]
[1742154898423,18.64964886,127.17,127.14,16.9317788]
[1742154899519,6.2902,127.18,127.15,16.9317788]
[1742154899742,18.64964886,127.17,127.14,16.9317788]
[1742154900130,6.2902,127.18,127.14,16.9317788]
[1742154900339,6.2902,127.18,127.15,16.9317788]
[1742154901539,6.2902,127.18,127.16,16.9317788]
[1742154901748,6.2902,127.18,127.15,16.9317788]
[1742154902127,18.64964886,127.18,127.16,16.9317788]
[1742154902625,6.2893,127.2,127.17,16.9317788]
[1742154902920,16.9317788,127.18,127.13,16.9317788]
[1742154903130,35.58142766,127.19,127.14,16.9317788]
[1742154903721,18.64964886,127.19,127.15,16.9317788]
[1742154904233,6.2902,127.18,127.15,16.9317788]
[1742154904434,6.2902,127.18,127.14,16.9317788]
[1742154905144,6.2902,127.18,127.14,16.9947788]
[1742154905549,18.64964886,127.17,127.14,0.063]
[1742154906254,6.2912,127.16,127.14,0.063]
[1742154908152,32.66054886,127.17,127.14,0.063]
[1742154909150,32.66054886,127.17,127.15,10.83403256]
[1742154911352,32.66054886,127.17,127.15,16.92058457]
[1742154912845,26.36964886,127.17,127.15,16.92058457]
[1742154913156,32.66044886,127.17,127.15,16.92058457]
[1742154913352,32.66044886,127.17,127.14,16.98358457]
[1742154913555,16.92058457,127.16,127.14,0.063]
[1742154914850,6.2917,127.15,127.14,0.063]
[1742154915854,41.86193343,127.15,127.14,0.063]
[1742154916159,65.82625657,127.15,127.14,0.0001]
[1742154916454,42.14625657,127.15,127.14,0.0001]
[1742154916755,24.94134886,127.15,127.14,0.0001]
[1742154918255,65.82625657,127.15,127.14,0.0001]
[1742154921959,65.82625657,127.15,127.1,0.063]
[1742154921960,18.933972,127.11,127.1,0.063]
[1742154922255,43.57455657,127.11,127.1,0.063]
[1742154923064,49.86825657,127.11,127.1,0.063]
[1742154923362,32.66334886,127.11,127.1,0.063]
[1742154923558,18.64964886,127.11,127.1,0.063]
[1742154923743,18.64964886,127.11,127.1,16.98358457]
[1742154923942,18.64964886,127.11,127.1,0.063]
[1742154926557,24.94334886,127.11,127.1,0.063]
[1742154927362,18.64964886,127.11,127.1,0.063]
[1742154927663,26.36964886,127.14,127.1,16.98358457]
[1742154927855,26.36964886,127.14,127.1,0.063]
[1742154928158,43.29023343,127.14,127.1,0.063]
[1742154929660,18.64964886,127.12,127.1,0.063]
[1742154930861,16.92058457,127.11,127.1,0.063]
[1742154931249,17.20490771,127.11,127.1,0.0001]
[1742154931853,42.14825657,127.11,127.1,0.0001]
[1742154933659,42.14825657,127.11,127.08,0.0001]
[1742154933867,18.933972,127.05,127.01,0.063]
[1742154934159,35.85455657,127.02,127.01,0.063]
[1742154934369,35.57023343,127.02,127.01,0.063]
[1742154934868,18.64964886,127.02,127.01,0.063]
[1742154935757,6.2981,127.03,127.01,0.063]
[1742154937156,18.64964886,127.02,127.01,0.063]
[1742154938650,35.57023343,127.02,127.01,0.063]
[1742154938950,41.86843343,127.02,127.01,0.063]
[1742154939150,24.94784886,127.02,127.01,0.063]
[1742154939787,43.96432314,126.98,126.9,1.6254]
[1742154940074,45.7940631,126.92,126.87,28.83281424]
[1742154940369,7.72,126.92,126.87,28.83281424]
[1742154940583,7.72,126.92,126.9,27.14441424]
[1742154941464,41.1,126.94,126.91,27.20741424]
[1742154942249,18.64964886,126.95,126.91,27.20741424]
[1742154942457,18.64964886,126.95,126.92,27.14441424]
[1742154942676,24.95134886,126.95,126.91,27.20741424]
[1742154942852,18.64964886,126.95,126.91,27.20741424]
[1742154944011,24.95144886,126.95,126.91,27.20741424]
[1742154944186,24.95144886,126.95,126.91,0.063]
[1742154944676,52.0958631,126.95,126.91,0.063]
[1742154945982,7.72,126.96,126.93,27.14441424]
[1742154946158,24.94984886,126.98,126.94,27.14441424]
[1742154946658,52.0942631,126.98,126.93,27.14441424]
[1742154948880,27.14441424,126.97,126.92,27.14441424]
[1742154950661,18.64964886,126.95,126.92,27.14441424]
[1742154950856,45.7940631,126.95,126.91,0.063]
[1742154951678,53.5140631,126.95,126.91,0.063]
[1742154951882,26.36964886,126.95,126.91,27.20741424]
[1742154952380,26.36964886,126.95,126.91,0.063]
[1742154953186,32.67134886,126.95,126.91,0.063]
[1742154954178,7.72,126.95,126.93,27.14441424]
[1742154954388,24.94994886,126.98,126.93,27.14441424]
[1742154954568,0.03,126.95,126.92,8.0352]
[1742154955267,0.03,126.95,126.93,6.3026]
[1742154955470,0.03,126.95,126.94,27.14441424]
[1742154962291,0.03,126.95,126.93,27.14441424]
[1742154962586,0.03,126.95,126.94,27.14441424]
[1742154964009,0.03,126.95,126.93,27.14441424]
[1742154964374,0.03,126.95,126.92,28.78921424]
[1742154965095,0.03,126.95,126.92,18.62545242]
[1742154966477,0.03,126.95,126.94,0.063]
[1742154968393,6.17070046,127.06,126.98,0.14216157]
[1742154968699,0.03,127.08,127.03,16.98065242]
[1742154968909,16.98065242,127.05,127.01,1.586]
[1742154969077,18.64964886,127.04,127.01,1.586]
[1742154970075,16.98065242,127.06,127.01,1.586]
[1742154970316,18.64964886,127.05,127.01,1.586]
[1742154970497,18.64964886,127.05,127.01,18.56665242]
[1742154971107,18.64964886,127.05,127.01,28.71724705]
[1742154972097,27.13124705,127.06,127.01,28.71724705]
[1742154972497,27.13124705,127.06,127.01,1.586]
[1742154973511,27.13124705,127.06,127.01,28.71724705]
[1742154974035,18.64964886,127.04,127.01,1.586]
[1742154976211,27.13124705,127.02,126.98,1.5322]
[1742154976386,18.64964886,127.01,126.98,1.5322]
[1742154978591,18.64964886,127.0,126.98,1.5322]
[1742154978805,18.64964886,126.98,126.95,1.5322]
[1742154979217,18.64964886,126.99,126.95,28.66344705]
[1742154980119,7.7,127.0,126.96,27.13124705]
[1742154980320,26.34964886,127.0,126.98,27.13124705]
[1742154980613,18.64964886,127.0,126.98,27.13124705]
[1742154981117,18.64964886,127.0,126.95,1.5322]
[1742154981118,18.64964886,127.0,126.97,27.13124705]
[1742154983317,7.73,127.01,126.99,27.13124705]
[1742154984632,0.03,127.01,127.0,27.13124705]
[1742154985301,0.03,127.01,127.0,33.43044705]
[1742154988607,0.03,127.01,127.0,6.2992]
[1742154989103,0.03,127.01,127.0,33.43044705]
[1742154993122,0.03,127.01,127.0,16.95872055]
[1742154993316,0.03,127.01,126.98,6.3002]
[1742154993524,0.03,127.01,127.0,16.95872055]
[1742154994326,0.03,127.01,127.0,6.2992]
[1742154994629,0.03,127.01,127.0,23.25792055]
[1742155002536,0.03,127.01,127.0,23.40008212]
[1742155002840,0.03,127.01,127.0,24.93508212]
[1742155015132,0.03,127.01,127.0,18.82620289]
[1742155017747,26.32964886,127.07,127.01,0.14216157]
[1742155017949,26.32964886,127.07,127.04,10.84984132]
[1742155018344,18.64964886,127.07,127.04,10.84984132]
[1742155020148,0.03,127.08,127.04,17.14704132]
[1742155020342,0.03,127.08,127.05,10.84984132]
[1742155020539,0.03,127.08,127.07,10.84984132]
[1742155020859,0.03,127.08,127.05,10.84984132]
[1742155021949,0.03,127.08,127.04,10.84984132]
[1742155022828,0.03,127.08,127.05,10.84984132]
[1742155023027,0.03,127.08,127.06,10.84984132]
[1742155023232,0.03,127.08,127.07,10.84984132]
[1742155027642,0.03,127.08,127.05,0.14216157]
[1742155027845,0.03,127.08,127.04,20.0]
[1742155028042,0.03,127.08,127.04,30.84984132]
[1742155028254,0.03,127.08,127.04,10.84984132]
[1742155028754,10.87984132,127.08,127.01,87.0985]
[1742155028933,10.87984132,127.08,127.02,10.99200289]
[1742155029133,10.84984132,127.07,127.02,10.99200289]
[1742155029542,18.52984132,127.07,127.02,10.99200289]
[1742155029730,6.2962,127.06,127.02,10.99200289]
[1742155030638,6.2962,127.06,127.03,10.84984132]
[1742155030947,13.9758,127.07,127.04,10.84984132]
[1742155031154,7.68,127.07,127.05,10.84984132]
[1742155032459,13.9758,127.07,127.04,10.84984132]
[1742155035062,7.68,127.07,127.05,10.84984132]
[1742155035561,6.3252,127.08,127.06,10.84984132]
[1742155035562,0.03,127.08,127.06,10.84984132]
[1742155035739,0.03,127.08,127.07,10.84984132]
[1742155036441,6.3253,127.08,127.06,10.84984132]
[1742155036758,6.3253,127.08,127.05,10.84984132]
[1742155037058,6.3253,127.08,127.04,10.84984132]
[1742155037059,0.03,127.08,127.04,10.84984132]
[1742155038162,0.03,127.08,127.05,10.84984132]
[1742155039652,0.03,127.08,127.04,10.84984132]
[1742155040063,29.52949018,127.08,127.03,10.84984132]
[1742155041582,6.2957,127.07,127.03,10.84984132]
[1742155042152,6.2957,127.07,127.04,10.84984132]
[1742155043172,6.3254,127.08,127.04,10.84984132]
[1742155044569,6.3254,127.08,127.03,10.84984132]
[1742155045257,17.17524132,127.08,127.03,10.84984132]
[1742155047171,29.49949018,127.07,127.01,0.20516157]
[1742155047371,18.52984132,127.06,127.01,10.91284132]
[1742155048476,6.2972,127.04,127.01,0.063]
[1742155048655,17.14704132,127.04,127.01,0.063]
[1742155049375,6.2972,127.04,127.01,0.063]
[1742155049748,10.84984132,127.05,127.01,0.063]
[1742155050377,17.14654132,127.05,127.01,0.063]
[1742155051169,14.0989,127.06,127.01,10.91284132]
[1742155051477,32.74854886,127.06,127.02,10.84984132]
[1742155052282,18.64964886,127.05,127.01,10.91284132]
[1742155052458,29.49949018,127.05,127.01,0.063]
[1742155053775,35.79629018,127.05,127.01,0.063]
[1742155055382,29.49949018,127.05,127.01,0.063]
[1742155055563,18.64964886,127.05,127.01,10.91284132]
[1742155057268,18.64964886,127.05,127.02,17.14804132]
[1742155057473,18.64964886,127.05,127.02,10.84984132]
[1742155057690,18.64964886,127.05,127.01,17.21134132]
[1742155058870,18.64964886,127.05,127.01,10.91284132]
[1742155059472,24.94634886,127.05,127.01,10.91284132]
[1742155059672,24.94634886,127.05,127.01,0.063]
[1742155062483,35.79619018,127.05,127.01,0.063]
[1742155063282,24.94634886,127.05,127.01,10.91284132]
[1742155063467,24.94634886,127.05,127.01,0.063]
[1742155063672,35.79619018,127.05,127.01,0.063]
[1742155063877,24.94634886,127.05,127.01,0.063]
[1742155065381,35.79619018,127.05,127.01,0.063]
[1742155065996,18.64964886,127.03,127.01,0.063]
[1742155067190,17.14804132,127.02,127.01,0.063]
[1742155067496,35.79769018,127.02,127.01,0.063]
[1742155068590,24.94784886,127.02,127.01,0.063]
[1742155069100,35.79769018,127.02,127.01,0.063]
[1742155069292,24.94784886,127.02,127.01,0.063]
[1742155074300,10.84984132,127.05,127.01,0.063]
[1742155074473,29.49949018,127.05,127.01,0.063]
[1742155075800,51.53799018,127.05,127.01,0.063]
[1742155076203,7.66,127.04,127.01,0.063]
[1742155076900,6.2977,127.03,127.01,0.063]
[1742155077098,13.9574,127.04,127.01,0.063]
[1742155077398,18.64964886,127.03,127.01,0.063]
[1742155077596,0.03,127.05,127.01,0.063]
[1742155077901,32.63654886,127.05,127.02,10.84984132]
[1742155078096,24.97654886,127.05,127.02,10.84984132]
[1742155078278,18.67964886,127.05,127.02,10.84984132]
[1742155078482,24.97634886,127.05,127.02,10.84984132]
[1742155079799,0.03,127.05,127.02,10.84984132]
[1742155080007,0.03,127.05,127.03,10.84984132]
[1742155080498,0.03,127.05,127.04,10.84984132]
[1742155082182,0.03,127.05,127.04,12.36504132]
[1742155082907,0.03,127.05,127.04,18.80440289]
[1742155083812,0.03,127.05,127.04,12.36504132]
[1742155084191,0.03,127.05,127.04,1.5152]
[1742155084706,0.03,127.05,127.02,10.84984132]
[1742155084919,0.03,127.05,127.01,10.91284132]
[1742155085512,6.3267,127.05,127.01,10.91284132]
[1742155085900,6.3267,127.05,127.02,10.84984132]
[1742155086625,6.3267,127.05,127.03,10.84984132]
[1742155086913,6.3267,127.05,127.04,10.84984132]
[1742155086914,0.03,127.05,127.04,10.84984132]
[1742155089212,0.03,127.05,127.04,17.28920289]
[1742155089418,0.03,127.05,127.04,10.99200289]
[1742155089713,0.03,127.05,127.02,10.84984132]
[1742155090012,0.03,127.05,127.01,10.91284132]
[1742155090210,0.03,127.05,127.02,10.84984132]
[1742155093809,0.03,127.05,127.01,0.063]
[1742155093810,18.67964886,127.05,127.01,10.91284132]
[1742155094016,18.67964886,127.05,127.01,0.063]
[1742155094724,6.2972,127.04,127.01,0.063]
[1742155095013,6.2972,127.04,127.01,10.91284132]
[1742155105835,6.2972,127.04,127.02,10.84984132]
[1742155106326,0.03,127.05,127.03,10.84984132]
[1742155106533,0.03,127.05,127.04,10.84984132]
[1742155108036,0.03,127.05,127.04,17.14704132]
[1742155108421,0.03,127.05,127.04,17.28920289]
[1742155109239,0.03,127.05,127.04,10.99200289]
[1742155110431,0.03,127.05,127.04,17.28920289]
[1742155110735,0.03,127.05,127.04,18.84030289]
[1742155112838,0.03,127.05,127.04,12.54310289]
[1742155114644,0.03,127.05,127.04,18.84030289]
[1742155117429,0.03,127.05,127.04,12.54310289]
[1742155119739,0.03,127.05,127.01,0.063]
[1742155119939,18.67964886,127.05,127.01,10.91284132]
[1742155120129,0.03,127.05,127.03,10.84984132]
[1742155120842,6.3267,127.05,127.01,10.91284132]
[1742155121145,6.3267,127.05,127.02,10.84984132]
[1742155121326,13.9667,127.05,127.02,10.84984132]
[1742155125248,18.64964886,127.04,127.01,10.91284132]
[1742155125545,18.64964886,127.04,127.01,0.063]
[1742155126751,6.2977,127.03,127.01,0.063]
[1742155129148,6.2974,127.04,127.01,10.91284132]
[1742155129534,13.9669,127.05,127.02,10.84984132]
[1742155130352,18.64964886,127.04,127.02,10.84984132]
[1742155132155,24.94684886,127.04,127.01,10.91284132]
[1742155134059,18.64964886,127.04,127.01,10.91284132]
[1742155134453,24.94704886,127.04,127.01,10.91284132]
[1742155136059,24.94704886,127.04,127.01,0.063]
[1742155137037,24.97704886,127.04,127.01,0.063]
[1742155140446,24.97704886,127.04,127.01,10.91284132]
[1742155140761,18.67964886,127.04,127.01,10.91284132]
[1742155141352,0.03,127.04,127.03,10.84984132]
[1742155144461,0.03,127.04,127.03,17.14754132]
[1742155144642,0.03,127.04,127.03,17.28970289]
[1742155145240,0.03,127.04,127.03,17.43186446]
[1742155145449,0.03,127.05,127.04,0.28432314]
[1742155145639,0.03,127.08,127.04,11.13416446]
[1742155145848,0.03,127.08,127.07,10.84984132]
[1742155147370,0.03,127.08,127.07,17.14554132]
[1742155149267,0.03,127.08,127.07,23.40682049]
[1742155149465,0.03,127.08,127.07,24.93372049]
[1742155150964,0.03,127.08,127.07,25.07588206]
[1742155151867,0.03,127.08,127.07,68.61740891]
[1742155153064,0.03,127.08,127.07,75.02990891]